[Event "Early-Titled-Tuesday-Blitz-March-05-2024"]
[Site "Chess.com"]
[Date "2024.03.05"]
[Round "11"]
[White "Qvalda"]
[Black "Actuary44"]
[Result "1-0"]
[WhiteElo "2451"]
[BlackElo "2523"]
[TimeControl "180+1"]
[EndTime "10:08:15 PST"]
[Termination "Qvalda won by resignation"]

1. d4 {[%clk 0:03:00.9]} 1... Nf6 {[%clk 0:02:59.7]} 2. c4 {[%clk 0:03:00.3]}
2... g6 {[%clk 0:03:00]} 3. Nf3 {[%clk 0:03:00.2]} 3... Bg7 {[%clk 0:03:00.7]}
4. e3 {[%clk 0:03:01]} 4... d6 {[%clk 0:03:01.3]} 5. Be2 {[%clk 0:03:01.6]} 5...
O-O {[%clk 0:03:01.9]} 6. O-O {[%clk 0:03:02.3]} 6... Nfd7 {[%clk 0:03:02.5]} 7.
Nc3 {[%clk 0:03:01.1]} 7... Nc6 {[%clk 0:03:02]} 8. d5 {[%clk 0:03:00.5]} 8...
Nce5 {[%clk 0:03:01.6]} 9. Nxe5 {[%clk 0:03:00.5]} 9... Nxe5 {[%clk 0:03:02.5]}
10. f4 {[%clk 0:03:00]} 10... Nd7 {[%clk 0:03:02.2]} 11. e4 {[%clk 0:03:00.4]}
11... e5 {[%clk 0:03:01.1]} 12. f5 {[%clk 0:02:55.2]} 12... g5 {[%clk
0:02:55.7]} 13. Bd3 {[%clk 0:02:42.1]} 13... c5 {[%clk 0:02:54.3]} 14. Qh5
{[%clk 0:02:39.1]} 14... h6 {[%clk 0:02:51.6]} 15. h4 {[%clk 0:02:36.2]} 15...
f6 {[%clk 0:02:48.7]} 16. Qe2 {[%clk 0:02:30.4]} 16... a6 {[%clk 0:02:45]} 17.
a3 {[%clk 0:02:30.1]} 17... Rb8 {[%clk 0:02:42.4]} 18. Be3 {[%clk 0:02:29]}
18... b5 {[%clk 0:02:31.3]} 19. cxb5 {[%clk 0:02:27.9]} 19... axb5 {[%clk
0:02:32.2]} 20. Bxb5 {[%clk 0:02:24.7]} 20... Nb6 {[%clk 0:02:32.3]} 21. a4
{[%clk 0:02:24.1]} 21... Bd7 {[%clk 0:02:29.4]} 22. Ra3 {[%clk 0:02:11.2]} 22...
Bxb5 {[%clk 0:02:26.8]} 23. axb5 {[%clk 0:02:08.5]} 23... gxh4 {[%clk
0:02:23.2]} 24. Ra6 {[%clk 0:01:57.9]} 24... Kh7 {[%clk 0:02:19.8]} 25. Kf2
{[%clk 0:01:51.2]} 25... h3 {[%clk 0:02:05.5]} 26. Rh1 {[%clk 0:01:47.3]} 26...
hxg2 {[%clk 0:02:05.6]} 27. Kxg2 {[%clk 0:01:46.9]} 27... Qe8 {[%clk 0:01:46.1]}
28. Kf1 {[%clk 0:01:38]} 28... Rh8 {[%clk 0:01:43.2]} 29. Ra7 {[%clk 0:01:34.5]}
29... Ra8 {[%clk 0:01:20.7]} 30. Rxh6+ {[%clk 0:01:20.7]} 30... Kg8 {[%clk
0:01:20.7]} 31. Rxg7+ {[%clk 0:01:16]} 31... Kxg7 {[%clk 0:01:19.4]} 32. Qg4+
{[%clk 0:01:15.3]} 32... Kf7 {[%clk 0:01:18.1]} 33. Qg6+ {[%clk 0:00:49.1]}
33... Ke7 {[%clk 0:01:18.4]} 34. Qxf6+ {[%clk 0:00:49.2]} 34... Kd7 {[%clk
0:01:18.9]} 35. Qxd6+ {[%clk 0:00:37.9]} 35... Kc8 {[%clk 0:01:14.6]} 36. Rxh8
{[%clk 0:00:20.6]} 36... Qxh8 {[%clk 0:01:14]} 37. Qc6+ {[%clk 0:00:21]} 37...
Kd8 {[%clk 0:01:10.8]} 38. Bg5+ {[%clk 0:00:19.5]} 1-0

[Event "Early-Titled-Tuesday-Blitz-March-05-2024"]
[Site "Chess.com"]
[Date "2024.03.05"]
[Round "11"]
[White "deepfear"]
[Black "ricaurtelopezj1955"]
[Result "0-1"]
[WhiteElo "1967"]
[BlackElo "2149"]
[TimeControl "180+1"]
[EndTime "10:08:19 PST"]
[Termination "ricaurtelopezj1955 won on time"]

1. e4 {[%clk 0:02:56.2]} 1... c5 {[%clk 0:02:58.9]} 2. Nc3 {[%clk 0:02:55.6]}
2... e6 {[%clk 0:02:56.9]} 3. g3 {[%clk 0:02:50.8]} 3... d5 {[%clk 0:02:55.6]}
4. d3 {[%clk 0:02:44.8]} 4... dxe4 {[%clk 0:02:53.6]} 5. Nxe4 {[%clk 0:02:40.2]}
5... Bd7 {[%clk 0:02:50]} 6. Bg2 {[%clk 0:02:39.9]} 6... Bc6 {[%clk 0:02:48.8]}
7. Be3 {[%clk 0:02:18.8]} 7... f5 {[%clk 0:02:44.9]} 8. Qh5+ {[%clk 0:01:35.5]}
8... g6 {[%clk 0:02:41.9]} 9. Qe2 {[%clk 0:01:30.6]} 9... fxe4 {[%clk
0:02:38.9]} 10. dxe4 {[%clk 0:01:30.5]} 10... Nf6 {[%clk 0:02:27.5]} 11. Rd1
{[%clk 0:01:26.1]} 11... Qc7 {[%clk 0:02:24.6]} 12. Bg5 {[%clk 0:01:18.6]} 12...
Be7 {[%clk 0:02:16.4]} 13. Nh3 {[%clk 0:01:02.4]} 13... Nbd7 {[%clk 0:02:08]}
14. Nf4 {[%clk 0:01:00.2]} 14... Nf8 {[%clk 0:02:04.4]} 15. Nd3 {[%clk
0:00:49.4]} 15... e5 {[%clk 0:01:58.2]} 16. O-O {[%clk 0:00:44.6]} 16... Ne6
{[%clk 0:01:56.2]} 17. Bd2 {[%clk 0:00:41.8]} 17... O-O {[%clk 0:01:52.1]} 18.
f4 {[%clk 0:00:31.8]} 18... Nd4 {[%clk 0:01:47.4]} 19. Qe1 {[%clk 0:00:24.1]}
19... Nxc2 {[%clk 0:01:46]} 20. Qe2 {[%clk 0:00:20.2]} 20... Nd4 {[%clk
0:01:37.2]} 21. Qe1 {[%clk 0:00:20.2]} 21... Ng4 {[%clk 0:01:31.5]} 22. fxe5
{[%clk 0:00:11.4]} 22... Nxe5 {[%clk 0:01:23.2]} 23. Bf4 {[%clk 0:00:09.3]}
23... Bd6 {[%clk 0:01:19.8]} 24. Qc3 {[%clk 0:00:05.9]} 24... b6 {[%clk
0:01:15.9]} 25. Nxe5 {[%clk 0:00:03.5]} 25... Bxe5 {[%clk 0:01:13.6]} 26. Qc4+
{[%clk 0:00:02.9]} 26... Kg7 {[%clk 0:01:11.4]} 27. Bxe5+ {[%clk 0:00:02.9]}
27... Qxe5 {[%clk 0:01:10.6]} 28. Rxf8 {[%clk 0:00:02.1]} 28... Rxf8 {[%clk
0:01:08.4]} 29. Rf1 {[%clk 0:00:01.3]} 29... Rxf1+ {[%clk 0:01:06.2]} 30. Bxf1
{[%clk 0:00:02.2]} 30... Qxe4 {[%clk 0:01:03.6]} 0-1

[Event "Early-Titled-Tuesday-Blitz-March-05-2024"]
[Site "Chess.com"]
[Date "2024.03.05"]
[Round "11"]
[White "MasterKroket"]
[Black "BilicVladimir"]
[Result "1/2-1/2"]
[WhiteElo "2499"]
[BlackElo "2611"]
[TimeControl "180+1"]
[EndTime "10:08:22 PST"]
[Termination "Game drawn - insufficient material"]

1. e4 {[%clk 0:03:00.9]} 1... c5 {[%clk 0:02:59.9]} 2. Nf3 {[%clk 0:03:00.5]}
2... d6 {[%clk 0:03:00.3]} 3. d4 {[%clk 0:03:00.8]} 3... cxd4 {[%clk 0:03:01.2]}
4. Nxd4 {[%clk 0:03:01.6]} 4... Nf6 {[%clk 0:03:01.4]} 5. Nc3 {[%clk 0:03:02]}
5... e5 {[%clk 0:03:02]} 6. Nb3 {[%clk 0:03:01.7]} 6... h6 {[%clk 0:03:00.8]} 7.
f3 {[%clk 0:02:57.8]} 7... Be6 {[%clk 0:02:59.7]} 8. Be3 {[%clk 0:02:58.1]} 8...
Be7 {[%clk 0:02:58.8]} 9. Qd2 {[%clk 0:02:57.2]} 9... d5 {[%clk 0:02:58.5]} 10.
exd5 {[%clk 0:02:55.5]} 10... Nxd5 {[%clk 0:02:58.4]} 11. Nxd5 {[%clk
0:02:54.6]} 11... Qxd5 {[%clk 0:02:57.5]} 12. Qxd5 {[%clk 0:02:49.1]} 12... Bxd5
{[%clk 0:02:55]} 13. c4 {[%clk 0:02:49.7]} 13... Bc6 {[%clk 0:02:51.3]} 14. Na5
{[%clk 0:02:47.2]} 14... Bb4+ {[%clk 0:02:49.8]} 15. Bd2 {[%clk 0:02:47.6]}
15... Bxd2+ {[%clk 0:02:49.5]} 16. Kxd2 {[%clk 0:02:48.5]} 16... b6 {[%clk
0:02:49]} 17. Nxc6 {[%clk 0:02:45.9]} 17... Nxc6 {[%clk 0:02:49.9]} 18. Bd3
{[%clk 0:02:46.4]} 18... Ke7 {[%clk 0:02:48]} 19. Be4 {[%clk 0:02:45.5]} 19...
Rad8+ {[%clk 0:02:46.6]} 20. Kc3 {[%clk 0:02:45.6]} 20... Nd4 {[%clk 0:02:47]}
21. Rhe1 {[%clk 0:02:40.2]} 21... Kf6 {[%clk 0:02:46.7]} 22. Rad1 {[%clk
0:02:32.5]} 22... g5 {[%clk 0:02:43.9]} 23. Bd5 {[%clk 0:02:22.6]} 23... Rhe8
{[%clk 0:02:37.9]} 24. a4 {[%clk 0:02:12.4]} 24... a5 {[%clk 0:02:35.7]} 25. Re4
{[%clk 0:02:07.4]} 25... Kf5 {[%clk 0:02:31.3]} 26. Bxf7 {[%clk 0:01:55]} 26...
Re7 {[%clk 0:02:24.5]} 27. Bd5 {[%clk 0:01:51.1]} 27... Rc7 {[%clk 0:02:23.8]}
28. g4+ {[%clk 0:01:45.6]} 28... Kf6 {[%clk 0:02:23.3]} 29. Rdxd4 {[%clk
0:01:45.7]} 29... exd4+ {[%clk 0:02:22.3]} 30. Kxd4 {[%clk 0:01:46.6]} 30... Re7
{[%clk 0:02:20.4]} 31. Rxe7 {[%clk 0:01:42.2]} 31... Kxe7 {[%clk 0:02:20.4]} 32.
c5 {[%clk 0:01:33.6]} 32... bxc5+ {[%clk 0:02:19]} 33. Kxc5 {[%clk 0:01:34.5]}
33... Rb8 {[%clk 0:02:17.6]} 34. b3 {[%clk 0:01:33.9]} 34... Rb4 {[%clk
0:02:15.9]} 35. Bc4 {[%clk 0:01:33.6]} 35... Kd7 {[%clk 0:02:15.4]} 36. Kd5
{[%clk 0:01:32.4]} 36... Rb6 {[%clk 0:02:14.9]} 37. Kc5 {[%clk 0:01:31.6]} 37...
Rf6 {[%clk 0:02:13.3]} 38. Bd5 {[%clk 0:01:30.8]} 38... Rf4 {[%clk 0:02:04.6]}
39. Be4 {[%clk 0:01:29.9]} 39... h5 {[%clk 0:02:03.3]} 40. h3 {[%clk 0:01:29.4]}
40... h4 {[%clk 0:02:02.9]} 41. b4 {[%clk 0:01:29.2]} 41... axb4 {[%clk
0:02:00.6]} 42. Kxb4 {[%clk 0:01:29.6]} 42... Kc7 {[%clk 0:02:00.7]} 43. Kc4
{[%clk 0:01:29.7]} 43... Rf6 {[%clk 0:02:01.4]} 44. a5 {[%clk 0:01:26.5]} 44...
Rd6 {[%clk 0:02:00.2]} 45. Bd5 {[%clk 0:01:19.4]} 45... Rd8 {[%clk 0:01:53.5]}
46. Kc5 {[%clk 0:01:17.5]} 46... Kb8 {[%clk 0:01:45.1]} 47. a6 {[%clk
0:01:16.7]} 47... Ka7 {[%clk 0:01:44.6]} 48. Bb7 {[%clk 0:01:17.2]} 48... Rd1
{[%clk 0:01:43.8]} 49. Kc4 {[%clk 0:00:58.4]} 49... Rh1 {[%clk 0:01:40.8]} 50.
f4 {[%clk 0:00:58.5]} 50... Rxh3 {[%clk 0:01:40.5]} 51. fxg5 {[%clk 0:00:58.7]}
51... Rg3 {[%clk 0:01:40.6]} 52. Kd4 {[%clk 0:00:56]} 52... h3 {[%clk
0:01:39.9]} 53. Ke5 {[%clk 0:00:54]} 53... Rxg4 {[%clk 0:01:38.4]} 54. Kf6
{[%clk 0:00:54.5]} 54... h2 {[%clk 0:01:37.6]} 55. g6 {[%clk 0:00:54.5]} 55...
Rb4 {[%clk 0:01:34.4]} 56. g7 {[%clk 0:00:53.9]} 56... Rb6+ {[%clk 0:01:31.5]}
57. Kf5 {[%clk 0:00:53.2]} 57... Rxb7 {[%clk 0:01:30.8]} 58. axb7 {[%clk
0:00:53]} 58... Kxb7 {[%clk 0:01:27.9]} 59. g8=Q {[%clk 0:00:52.9]} 59... h1=Q
{[%clk 0:01:26.3]} 60. Qf7+ {[%clk 0:00:52.6]} 60... Kb6 {[%clk 0:01:26]} 61.
Qe6+ {[%clk 0:00:52.8]} 61... Qc6 {[%clk 0:01:26]} 62. Qxc6+ {[%clk 0:00:52.8]}
62... Kxc6 {[%clk 0:01:26.9]} 1/2-1/2

[Event "Early-Titled-Tuesday-Blitz-March-05-2024"]
[Site "Chess.com"]
[Date "2024.03.05"]
[Round "11"]
[White "martinmena"]
[Black "goodnigth"]
[Result "1-0"]
[WhiteElo "2290"]
[BlackElo "2023"]
[TimeControl "180+1"]
[EndTime "10:08:23 PST"]
[Termination "martinmena won on time"]

1. c4 {[%clk 0:03:00.9]} 1... Nf6 {[%clk 0:02:56.1]} 2. g3 {[%clk 0:02:55.1]}
2... g6 {[%clk 0:02:42.7]} 3. Bg2 {[%clk 0:02:53.9]} 3... Bg7 {[%clk 0:02:43.6]}
4. Nc3 {[%clk 0:02:52.6]} 4... O-O {[%clk 0:02:36.7]} 5. d3 {[%clk 0:02:53]}
5... d6 {[%clk 0:02:19.5]} 6. Bg5 {[%clk 0:02:52.4]} 6... h6 {[%clk 0:02:14.3]}
7. Bd2 {[%clk 0:02:51.3]} 7... Nc6 {[%clk 0:02:02.3]} 8. e4 {[%clk 0:02:51.4]}
8... e5 {[%clk 0:01:43.9]} 9. h3 {[%clk 0:02:47.9]} 9... Kh7 {[%clk 0:01:43.6]}
10. Nge2 {[%clk 0:02:47.5]} 10... Nh5 {[%clk 0:01:35.4]} 11. O-O {[%clk
0:02:44.1]} 11... f5 {[%clk 0:01:35.3]} 12. exf5 {[%clk 0:02:41.2]} 12... gxf5
{[%clk 0:01:36.2]} 13. Kh2 {[%clk 0:02:33.2]} 13... Qe8 {[%clk 0:01:23.1]} 14.
f4 {[%clk 0:02:31.5]} 14... Qg6 {[%clk 0:01:12.8]} 15. Bf3 {[%clk 0:02:23.8]}
15... Be6 {[%clk 0:01:00.3]} 16. Nd5 {[%clk 0:02:02.7]} 16... Rf7 {[%clk
0:00:55.7]} 17. Bc3 {[%clk 0:01:53.8]} 17... Rg8 {[%clk 0:00:53.7]} 18. Rg1
{[%clk 0:01:36.5]} 18... Bh8 {[%clk 0:00:49.9]} 19. g4 {[%clk 0:01:05.2]} 19...
fxg4 {[%clk 0:00:40.7]} 20. hxg4 {[%clk 0:01:03.5]} 20... Nxf4 {[%clk
0:00:36.5]} 21. Nexf4 {[%clk 0:01:02.7]} 21... exf4 {[%clk 0:00:36]} 22. Be4
{[%clk 0:01:00.8]} 22... Bf5 {[%clk 0:00:27.7]} 23. gxf5 {[%clk 0:01:00.6]}
23... Qxg1+ {[%clk 0:00:21.3]} 24. Qxg1 {[%clk 0:01:01.5]} 24... Rxg1 {[%clk
0:00:20.5]} 25. Rxg1 {[%clk 0:01:02.4]} 25... Bxc3 {[%clk 0:00:12.6]} 26. bxc3
{[%clk 0:01:01.8]} 26... Ne5 {[%clk 0:00:11.8]} 27. f6+ {[%clk 0:01:01.6]} 27...
Kh8 {[%clk 0:00:11]} 28. Ne7 {[%clk 0:00:58.8]} 28... Rf8 {[%clk 0:00:05.3]} 29.
d4 {[%clk 0:00:54.6]} 1-0

[Event "Early-Titled-Tuesday-Blitz-March-05-2024"]
[Site "Chess.com"]
[Date "2024.03.05"]
[Round "11"]
[White "FlemingA"]
[Black "jaskol95"]
[Result "0-1"]
[WhiteElo "2438"]
[BlackElo "2570"]
[TimeControl "180+1"]
[EndTime "10:08:27 PST"]
[Termination "jaskol95 won by resignation"]

1. Nf3 {[%clk 0:02:36.2]} 1... e6 {[%clk 0:02:58.3]} 2. g3 {[%clk 0:02:33.7]}
2... f5 {[%clk 0:02:59]} 3. d3 {[%clk 0:02:29.4]} 3... Nf6 {[%clk 0:02:59.7]} 4.
Nbd2 {[%clk 0:02:29]} 4... Be7 {[%clk 0:02:59.3]} 5. e4 {[%clk 0:02:29.5]} 5...
fxe4 {[%clk 0:02:59]} 6. dxe4 {[%clk 0:02:28.1]} 6... d6 {[%clk 0:02:58.9]} 7.
e5 {[%clk 0:02:26.3]} 7... dxe5 {[%clk 0:02:56.5]} 8. Nxe5 {[%clk 0:02:25.3]}
8... O-O {[%clk 0:02:50.7]} 9. Bg2 {[%clk 0:02:24.6]} 9... c6 {[%clk 0:02:36.5]}
10. O-O {[%clk 0:02:22.4]} 10... Nbd7 {[%clk 0:02:36.7]} 11. Qe2 {[%clk
0:02:13.1]} 11... Nxe5 {[%clk 0:02:33.3]} 12. Qxe5 {[%clk 0:02:14]} 12... Bd6
{[%clk 0:02:31.5]} 13. Qe2 {[%clk 0:02:13.7]} 13... e5 {[%clk 0:02:31.6]} 14.
Ne4 {[%clk 0:02:09.5]} 14... Bc7 {[%clk 0:02:28.4]} 15. Bg5 {[%clk 0:02:07.9]}
15... Bf5 {[%clk 0:02:23.6]} 16. Rad1 {[%clk 0:01:50.9]} 16... Qe8 {[%clk
0:02:21.5]} 17. Bxf6 {[%clk 0:01:42.5]} 17... gxf6 {[%clk 0:02:20.3]} 18. Nd6
{[%clk 0:01:42.6]} 18... Bxd6 {[%clk 0:02:18.7]} 19. Rxd6 {[%clk 0:01:43.5]}
19... Qe7 {[%clk 0:02:18.6]} 20. Rfd1 {[%clk 0:01:40.6]} 20... Rad8 {[%clk
0:02:18.4]} 21. Qc4+ {[%clk 0:01:20.8]} 21... Be6 {[%clk 0:02:04.2]} 22. Qb4
{[%clk 0:01:00.7]} 22... Rxd6 {[%clk 0:01:59.9]} 23. Qxd6 {[%clk 0:01:01.6]}
23... Qxd6 {[%clk 0:01:56.2]} 24. Rxd6 {[%clk 0:01:02.5]} 24... Kf7 {[%clk
0:01:56.6]} 25. b3 {[%clk 0:00:57.3]} 25... Ke7 {[%clk 0:01:56.4]} 26. Rd2
{[%clk 0:00:55.7]} 26... Rd8 {[%clk 0:01:55.1]} 27. Rxd8 {[%clk 0:00:54.2]}
27... Kxd8 {[%clk 0:01:56]} 28. Kf1 {[%clk 0:00:52.7]} 28... Kc7 {[%clk
0:01:56]} 29. Ke2 {[%clk 0:00:50.3]} 29... Kd6 {[%clk 0:01:56.7]} 30. Ke3 {[%clk
0:00:43.8]} 30... Kc5 {[%clk 0:01:54.5]} 31. Be4 {[%clk 0:00:40.4]} 31... h6
{[%clk 0:01:48]} 32. c3 {[%clk 0:00:40.1]} 32... a5 {[%clk 0:01:48.1]} 33. Bd3
{[%clk 0:00:36.7]} 33... b5 {[%clk 0:01:43.4]} 34. f4 {[%clk 0:00:31.8]} 34...
exf4+ {[%clk 0:01:20.4]} 35. Kxf4 {[%clk 0:00:31.3]} 35... b4 {[%clk 0:01:21.1]}
36. cxb4+ {[%clk 0:00:20.1]} 36... Kxb4 {[%clk 0:01:19.7]} 37. Bf5 {[%clk
0:00:15.8]} 37... Bxf5 {[%clk 0:01:11.3]} 38. Kxf5 {[%clk 0:00:16.7]} 38... Ka3
{[%clk 0:01:12]} 39. Kxf6 {[%clk 0:00:17.2]} 39... Kxa2 {[%clk 0:01:12.7]} 40.
g4 {[%clk 0:00:16.9]} 40... Kxb3 {[%clk 0:01:12.9]} 41. h4 {[%clk 0:00:17.6]}
41... a4 {[%clk 0:01:12.7]} 42. g5 {[%clk 0:00:18.4]} 42... hxg5 {[%clk
0:01:09.6]} 43. hxg5 {[%clk 0:00:19.3]} 43... a3 {[%clk 0:01:10.2]} 44. g6
{[%clk 0:00:19.8]} 44... a2 {[%clk 0:01:10.9]} 45. g7 {[%clk 0:00:20.7]} 45...
a1=Q+ {[%clk 0:01:11.6]} 46. Kf7 {[%clk 0:00:20.6]} 46... Qxg7+ {[%clk
0:01:12.5]} 47. Kxg7 {[%clk 0:00:20.7]} 47... c5 {[%clk 0:01:13.4]} 48. Kf6
{[%clk 0:00:21.4]} 48... c4 {[%clk 0:01:14.3]} 49. Ke5 {[%clk 0:00:22.2]} 49...
c3 {[%clk 0:01:15.2]} 0-1

[Event "Early-Titled-Tuesday-Blitz-March-05-2024"]
[Site "Chess.com"]
[Date "2024.03.05"]
[Round "11"]
[White "RodokininEV"]
[Black "UnTucopalaTimba"]
[Result "1-0"]
[WhiteElo "2677"]
[BlackElo "1987"]
[TimeControl "180+1"]
[EndTime "10:08:30 PST"]
[Termination "RodokininEV won by resignation"]

1. e4 {[%clk 0:02:50.9]} 1... c6 {[%clk 0:02:59.6]} 2. d3 {[%clk 0:02:50]} 2...
d5 {[%clk 0:02:59.5]} 3. Nd2 {[%clk 0:02:50.9]} 3... dxe4 {[%clk 0:02:59.2]} 4.
dxe4 {[%clk 0:02:51]} 4... e5 {[%clk 0:02:59.7]} 5. Ngf3 {[%clk 0:02:51.7]} 5...
Qc7 {[%clk 0:02:57.1]} 6. Bc4 {[%clk 0:02:51.7]} 6... Bg4 {[%clk 0:02:54.3]} 7.
h3 {[%clk 0:02:51.4]} 7... Bh5 {[%clk 0:02:52.1]} 8. a4 {[%clk 0:02:51.2]} 8...
Nf6 {[%clk 0:02:48.7]} 9. Qe2 {[%clk 0:02:50.7]} 9... Bc5 {[%clk 0:02:45.3]} 10.
Nf1 {[%clk 0:02:49]} 10... Nbd7 {[%clk 0:02:41.3]} 11. Ng3 {[%clk 0:02:48.6]}
11... Bg6 {[%clk 0:02:37]} 12. a5 {[%clk 0:02:45.5]} 12... O-O {[%clk
0:02:31.1]} 13. c3 {[%clk 0:02:40.2]} 13... b5 {[%clk 0:02:28.2]} 14. Bb3 {[%clk
0:02:36]} 14... b4 {[%clk 0:02:24.3]} 15. O-O {[%clk 0:02:33.2]} 15... bxc3
{[%clk 0:02:22.9]} 16. bxc3 {[%clk 0:02:34.1]} 16... Rab8 {[%clk 0:02:17.3]} 17.
Bc4 {[%clk 0:02:26.3]} 17... a6 {[%clk 0:01:52.3]} 18. Nh4 {[%clk 0:02:21.4]}
18... Rfe8 {[%clk 0:01:37.6]} 19. Qf3 {[%clk 0:02:19.6]} 19... Be7 {[%clk
0:01:25.7]} 20. Nhf5 {[%clk 0:02:18.9]} 20... Nc5 {[%clk 0:01:21.3]} 21. Be3
{[%clk 0:02:15.2]} 21... Bxf5 {[%clk 0:01:11.7]} 22. Nxf5 {[%clk 0:02:15.2]}
22... Nfxe4 {[%clk 0:01:07.7]} 23. Qg4 {[%clk 0:02:12.9]} 23... Bf6 {[%clk
0:01:03]} 24. Nh6+ {[%clk 0:02:07]} 24... Kf8 {[%clk 0:00:59.2]} 25. Nxf7 {[%clk
0:01:59.2]} 25... Re7 {[%clk 0:00:55.9]} 26. Qh5 {[%clk 0:01:56.8]} 26... Rxf7
{[%clk 0:00:49.2]} 27. Bxf7 {[%clk 0:01:57.7]} 27... Qxf7 {[%clk 0:00:49.2]} 28.
Qxh7 {[%clk 0:01:57.9]} 28... Ke7 {[%clk 0:00:33.8]} 29. f3 {[%clk 0:01:51]}
29... Bg5 {[%clk 0:00:20.4]} 30. Rae1 {[%clk 0:01:20.2]} 30... Bxe3+ {[%clk
0:00:17.3]} 31. Rxe3 {[%clk 0:01:21.1]} 31... Nf6 {[%clk 0:00:14.4]} 32. Qh4
{[%clk 0:01:11.5]} 32... Nd7 {[%clk 0:00:13.2]} 33. f4 {[%clk 0:01:09]} 33...
Rb5 {[%clk 0:00:12.4]} 34. Rfe1 {[%clk 0:01:08.7]} 34... e4 {[%clk 0:00:11.8]}
35. Rxe4+ {[%clk 0:01:08.2]} 35... Kf8 {[%clk 0:00:10.7]} 36. Re8+ {[%clk
0:01:05.9]} 36... Nxe8 {[%clk 0:00:10.6]} 37. Qh8+ {[%clk 0:01:03.3]} 37... Qg8
{[%clk 0:00:10.5]} 38. Rxe8+ {[%clk 0:01:03.5]} 38... Kxe8 {[%clk 0:00:10.6]}
39. Qxg8+ {[%clk 0:01:03.7]} 1-0

[Event "Early-Titled-Tuesday-Blitz-March-05-2024"]
[Site "Chess.com"]
[Date "2024.03.05"]
[Round "11"]
[White "Bekkedahl"]
[Black "yonaltimur"]
[Result "0-1"]
[WhiteElo "2202"]
[BlackElo "2355"]
[TimeControl "180+1"]
[EndTime "10:08:34 PST"]
[Termination "yonaltimur won by checkmate"]

1. e4 {[%clk 0:03:00.9]} 1... c5 {[%clk 0:02:59.7]} 2. Nf3 {[%clk 0:03:01.3]}
2... d6 {[%clk 0:02:59.1]} 3. Bb5+ {[%clk 0:03:01.8]} 3... Bd7 {[%clk
0:02:58.4]} 4. Bxd7+ {[%clk 0:03:02.3]} 4... Qxd7 {[%clk 0:02:59.3]} 5. O-O
{[%clk 0:03:02.5]} 5... Nc6 {[%clk 0:02:58.7]} 6. Re1 {[%clk 0:03:01.9]} 6...
Nf6 {[%clk 0:02:59.1]} 7. c3 {[%clk 0:03:01.7]} 7... e6 {[%clk 0:02:59.7]} 8. d4
{[%clk 0:03:02.3]} 8... cxd4 {[%clk 0:03:00.6]} 9. cxd4 {[%clk 0:03:02.8]} 9...
d5 {[%clk 0:03:01.2]} 10. e5 {[%clk 0:03:02.5]} 10... Ne4 {[%clk 0:03:01.8]} 11.
Nbd2 {[%clk 0:03:02.4]} 11... Nxd2 {[%clk 0:03:02.4]} 12. Bxd2 {[%clk
0:03:03.2]} 12... Be7 {[%clk 0:03:02]} 13. Rc1 {[%clk 0:03:03.7]} 13... O-O
{[%clk 0:03:02.6]} 14. Rc3 {[%clk 0:03:01.9]} 14... Rfc8 {[%clk 0:03:02.9]} 15.
a3 {[%clk 0:03:00.8]} 15... Qd8 {[%clk 0:03:03.1]} 16. Rd3 {[%clk 0:03:00.4]}
16... b5 {[%clk 0:03:03.2]} 17. h4 {[%clk 0:02:52.3]} 17... a5 {[%clk
0:03:01.3]} 18. Ng5 {[%clk 0:02:49.8]} 18... h6 {[%clk 0:02:58.8]} 19. Nh3
{[%clk 0:02:48.1]} 19... b4 {[%clk 0:02:57.5]} 20. Qh5 {[%clk 0:02:36.8]} 20...
Bf8 {[%clk 0:02:32.3]} 21. Rg3 {[%clk 0:02:23]} 21... Ne7 {[%clk 0:02:00.4]} 22.
Bxh6 {[%clk 0:01:25.5]} 22... Nf5 {[%clk 0:01:59.6]} 23. Bxg7 {[%clk 0:01:25.6]}
23... Bxg7 {[%clk 0:01:53.4]} 24. Ng5 {[%clk 0:01:08.1]} 24... Nxg3 {[%clk
0:01:45.5]} 25. Qxf7+ {[%clk 0:01:01]} 25... Kh8 {[%clk 0:01:45.2]} 26. fxg3
{[%clk 0:00:58.3]} 26... Qe8 {[%clk 0:01:40]} 27. Qf3 {[%clk 0:00:31.6]} 27...
Qg6 {[%clk 0:01:39.3]} 28. Rf1 {[%clk 0:00:30.3]} 28... Rf8 {[%clk 0:01:38.4]}
29. Qg4 {[%clk 0:00:29.9]} 29... Rxf1+ {[%clk 0:01:38]} 30. Kxf1 {[%clk
0:00:30.8]} 30... Qb1+ {[%clk 0:01:36.8]} 31. Ke2 {[%clk 0:00:31]} 31... Qc2+
{[%clk 0:01:35.3]} 32. Ke3 {[%clk 0:00:29.6]} 32... Rf8 {[%clk 0:01:18.6]} 33.
Nxe6 {[%clk 0:00:17.6]} 33... Qf2+ {[%clk 0:01:16.1]} 34. Kd3 {[%clk 0:00:18.3]}
34... Qf1+ {[%clk 0:01:16]} 35. Ke3 {[%clk 0:00:16.9]} 35... Bh6+ {[%clk
0:01:02]} 36. Ng5 {[%clk 0:00:14.9]} 36... Rf2 {[%clk 0:00:58.2]} 37. Qc8+
{[%clk 0:00:13.8]} 37... Bf8 {[%clk 0:00:57.5]} 38. Qe6 {[%clk 0:00:10]} 38...
Qe1+ {[%clk 0:00:54.7]} 39. Kd3 {[%clk 0:00:10]} 39... Qd2# {[%clk 0:00:54.7]}
0-1